Cogmind - Beta 12 @@@ ROGUE MODE // 2023.05.06 @ 19:10:52 Player: Andz Result: Destroyed by X-67 Chaingunner with Heavy Machine Gun Performance ------------- Evolutions (3) 1500 Regions Visited (8) 1600 Robots Destroyed (83) 415 Value Destroyed (3465) 3465 Prototype IDs (3) 60 Alien Tech Used (0) 0 Bonus (1143) 1143 TOTAL SCORE: 8183 Bonus ------- High Alert Combat Kills 266 Follower Combat Kills 177 Entered Garrisons 200 Entered DSFs 500 Cogmind --------- Core Integrity 0/700 Matter 232/300 Energy 480/480 System Corruption 4% Temperature Warning (395) Movement Walking (185) Ox1 Location -7/DSF Parts ------- > --- POWER (2) -------- Improved Deuterium Engine Improved Deuterium Engine > --- PROPULSION (4) --- Carbon-fiber Leg Advanced VSS Leg > --- UTILITY (4) ------ High-capacity Storage Unit Weight Redist. System Advanced Weight Redist. System > --- WEAPON (3) ------- Gatling Laser Heavy Ion Cannon Magnetic Acceleration Cannon > --- INVENTORY (20) --- Micro Nuclear Core Micro Nuclear Core Micro Nuclear Core Micro Nuclear Core Large Battery (200) High-capacity Matter Pod (200) Advanced Weight Redist. System Advanced Visual Processing Unit Experimental Sensor Array Shock Absorption System Hacking Suite Relay Coupler [NC] (31) Relay Coupler [Hunter] (17) Proton Missile Launcher Segregator Peak State ------------ > --- POWER ------------ Improved Deuterium Engine Improved Deuterium Engine > --- PROPULSION ------- Aluminum Leg Aluminum Leg Aluminum Leg Advanced VSS Leg > --- UTILITY ---------- Improved Heat Sink Improved Heat Sink High-capacity Storage Unit Insulated Plating > --- WEAPON ----------- Gatling Laser Heavy Ion Cannon Gauss Cannon > --- INVENTORY -------- Light Nuclear Core Improved Deuterium Engine Hybrid Fission Core Hybrid Antimatter Reactor Light Treads Light Treads Aluminum Leg Improved Heat Sink Large Battery High-capacity Matter Pod Advanced Visual Processing Unit Experimental Sensor Array Shock Absorption System Hacking Suite Shock Rifle Magnetic Acceleration Cannon Proton Missile Launcher Segregator [Rating: 46] Favorites ----------- Power Improved Deuterium Engine Engine Improved Deuterium Engine Power Core Light Nuclear Core Propulsion Aluminum Leg Treads Light Treads Leg Aluminum Leg Wheel Wheel Flight Unit Xenon Bombardment Thruster Utility High-capacity Storage Unit Device Improved Heat Sink Storage High-capacity Storage Unit Processor Terrain Scan Processor Hackware Hacking Suite Protection Improved Utility Shielding Weapon Particle Gun Energy Gun Particle Gun Energy Cannon Heavy Ion Cannon Ballistic Gun Light Assault Rifle Ballistic Cannon Gauss Cannon Slashing Weapon Great Axe Special Melee Weapon Datajack Build | -11 -10 -9 -9 -8 -7 -7 -7 -7 ------- Run | Jun Mat Mat Min Mat Fac Gar Fac DSF Slots Evolved 6 | . . 2 . 2 2 . . . Power 1 | . . . . . 1 . . . Propulsion 2 | . . 2 . . . . . . Utility 2 | . . . . 1 1 . . . Weapon 1 | . . . . 1 . . . . Parts Attached 127 | 8 9 22 . 19 30 32 . 7 Power 26 | 1 . 3 . 3 9 8 . 2 Engine 21 | 1 . 3 . 3 6 6 . 2 Core 5 | . . . . . 3 2 . . Reactor . | . . . . . . . . . Propulsion 41 | 2 2 11 . 5 9 11 . 1 Treads 9 | . . . . . 4 5 . . Leg 22 | 2 2 11 . 1 . 5 . 1 Wheel 6 | . . . . . 5 1 . . Hover . | . . . . . . . . . Flight 4 | . . . . 4 . . . . Utility 26 | 3 5 3 . 4 2 7 . 2 Device 11 | 1 2 1 . 1 . 4 . 2 Storage 4 | 2 1 1 . . . . . . Processor 1 | . . . . 1 . . . . Hackware 1 | . . . . 1 . . . . Protection 9 | . 2 1 . 1 2 3 . . Artifact . | . . . . . . . . . Weapon 34 | 2 2 5 . 7 10 6 . 2 Energy Gun 11 | 1 1 2 . 3 1 2 . 1 Energy Cannon 3 | . . . . . 2 1 . . Ballistic Gun 11 | 1 1 3 . 2 4 . . . Ballistic Cannon 4 | . . . . . 1 2 . 1 Launcher . | . . . . . . . . . Special Weapon . | . . . . . . . . . Impact Weapon . | . . . . . . . . . Slashing Weapon 3 | . . . . 1 1 1 . . Piercing Weapon . | . . . . . . . . . Special Melee Weapon 2 | . . . . 1 1 . . . Unidentified Prototypes . | . . . . . . . . . Parts Lost 54 | . . 15 . 8 10 15 . 6 Power 8 | . . 2 . . 2 4 . . Propulsion 24 | . . 8 . 4 4 5 . 3 Utility 6 | . . 1 . . . 3 . 2 Weapon 16 | . . 4 . 4 4 3 . 1 Highest Loss Streak 8 | . . 3 . 5 4 8 . 4 To Critical Strikes . | . . . . . . . . . Average Slot Usage (%) 92 | . 100 98 100 86 87 90 . 92 Engine 11 | . 14 10 11 9 8 13 . 15 Treads 4 | . . . . . . 13 . 4 Leg 18 | . 28 43 44 19 . 9 . 19 Wheel 3 | . . . . . 17 . . . Flight 1 | . . . . 3 3 . . . Device 9 | . 14 8 . 4 6 13 . 22 Storage 9 | . 14 11 11 9 7 7 . 7 Hackware 2 | . . . . 7 7 . . . Protection 4 | . . 1 11 1 7 8 . . Energy Gun 9 | . 14 9 11 12 5 6 . 14 Energy Cannon 2 | . . . . . 3 6 . 7 Ballistic Gun 7 | . 14 11 11 11 7 . . . Ballistic Cannon 2 | . . . . . 2 6 . . Naked Turns . | . . . . . . . . . Heaviest Build 84 | 13 29 54 54 60 76 84 78 80 Greatest Support 82 | 20 20 40 40 40 82 82 28 52 Greatest Overweight (x) 20 | 3 1 2 1 18 5 20 2 2 Average Overweight (x) 1 | . . . 1 2 1 1 2 1 Largest Inventory Capacity 20 | 8 15 20 20 20 20 20 20 20 Average Capacity 18 | 7 12 17 20 20 20 20 20 20 Most Carried 20 | 7 15 18 18 20 20 20 15 18 Average Carried 15 | 4 11 14 16 17 18 15 15 16 Final Capacity 20 | 8 15 20 20 20 20 20 20 20 Final Carried 18 | 6 15 16 18 15 16 15 15 15 Class Distribution -------------------- 33% | Mutant 30% | Scavenger-Tank 16% | Scavenger-Mutant 13% | Scavenger-Gunner 5% | Gunner Dominant Class ---------------- Mutant | -10/Materials Mutant | -9/Materials Scavenger-Mutant | -9/Mines Scavenger-Gunner | -8/Materials Scavenger-Tank | -7/Factory Scavenger-Tank | -7/Garrison Scavenger-Tank | -7/Factory Scavenger-Gunner | -7/DSF Resources | -11 -10 -9 -9 -8 -7 -7 -7 -7 ----------- Run | Jun Mat Mat Min Mat Fac Gar Fac DSF Matter Collected 2582 | 328 204 450 . 208 660 726 . 6 Remotely . | . . . . . . . . . Salvage Created 3305 | 112 219 919 . 411 821 761 . 62 Parts 141 | 7 8 47 . 18 43 14 . 4 Haulers Intercepted 3 | . . 1 . 2 . . . . Recyclers Shooed . | . . . . . . . . . Parts Field Recycled . | . . . . . . . . . Retrieved Matter . | . . . . . . . . . Parts Self-Destructed . | . . . . . . . . . Prevented . | . . . . . . . . . Kills | -11 -10 -9 -9 -8 -7 -7 -7 -7 ------- Run | Jun Mat Mat Min Mat Fac Gar Fac DSF Combat Hostiles Destroyed 68 | . 6 21 . 6 15 19 . 1 Melee 1 | . . . . 1 . . . . Guns 44 | . 6 21 . 4 8 4 . 1 Cannons 20 | . . . . . 5 15 . . Classes Destroyed 15 | 3 2 2 . 2 4 1 . 1 Worker 4 | 2 . . . . 2 . . . Builder 2 | . . . . . 2 . . . Tunneler 2 | 1 . . . 1 . . . . Hauler 3 | . . 1 . 2 . . . . Recycler 1 | 1 . . . . . . . . Mechanic 1 | . . . . . 1 . . . Operator 1 | . . . . 1 . . . . Watcher 1 | . . . . . 1 . . . Swarmer 6 | . 2 3 . . . 1 . . Grunt 37 | . 4 13 . 3 7 10 . . Brawler 1 | . . . . . . 1 . . Sentry 18 | . . 5 . 2 6 5 . . Specialist 1 | . . . . . . . . 1 Hunter 4 | . . . . 1 1 2 . . Programmer 1 | . . . . . 1 . . . Best Kill Streak 8 | 3 2 8 . 3 3 5 . 1 Combat Bots Only 8 | . 2 8 . 3 3 5 . 1 Max Kills in Single Turn 1 | 1 1 1 . 1 1 1 . 1 Gunslinging . | . . . . . . . . . Exploded . | . . . . . . . . . Melee 1 | . . . . 1 . . . . Uniques/NPCs Destroyed . | . . . . . . . . . Combat | -11 -10 -9 -9 -8 -7 -7 -7 -7 -------- Run | Jun Mat Mat Min Mat Fac Gar Fac DSF Damage Taken 7217 | . 333 1718 . 960 1585 2058 . 563 Core 1274 | . 75 236 . 262 330 262 . 109 Absorbed by Shields 9 | . . . . . . 9 . . Redirected to Shielding 101 | . . . . . 13 88 . . Regen/Repaired (Parts) 55 | . 37 18 . . . . . . Core Remaining (%) 65 | 100 70 . 41 52 . . . . Volleys Fired 270 | 10 28 84 . 38 49 56 . 5 Largest 3 | 2 2 2 . 3 3 3 . 3 Hottest 198 | 60 70 79 . 144 178 193 . 198 Shots Fired 623 | 20 56 162 . 109 129 132 . 15 Gun 473 | 20 56 162 . 109 83 36 . 7 Cannon 150 | . . . . . 46 96 . 8 Launcher . | . . . . . . . . . Special . | . . . . . . . . . Kinetic 312 | 10 28 89 . 43 79 60 . 3 Thermal 309 | 10 28 73 . 66 50 72 . 10 Explosive . | . . . . . . . . . Electromagnetic 2 | . . . . . . . . 2 Robot Hit Streak 13 | 7 7 11 . 6 13 10 . 6 Robot Miss Streak 7 | 2 4 6 . 6 7 6 . 4 Penetration Max . | . . . . . . . . . Secondary Targets 6 | . . 4 . 2 . . . . Max Gunslinging Chain 1 | . . 1 . 1 . . . . Shots Hit Robots 417 | 11 29 112 . 73 84 96 . 12 Core Hits 183 | 5 14 45 . 21 51 43 . 4 Critical Kills 3 | . . 1 . . 2 . . . Critical Parts Destroyed . | . . . . . . . . . Critical Strikes 22 | . . 2 . 7 6 7 . . Burn 10 | . . 1 . 6 2 1 . . Meltdown 2 | . . . . . 2 . . . Destroy 1 | . . 1 . . . . . . Blast 8 | . . . . . 2 6 . . Sever 1 | . . . . 1 . . . . Melee Attacks 12 | . . . . 11 . 1 . . Thermal 1 | . . . . . . 1 . . Impact . | . . . . . . . . . Slashing 5 | . . . . 5 . . . . Piercing . | . . . . . . . . . Sneak Attacks 6 | . . . . 6 . . . . Combat Hostiles . | . . . . . . . . . Follow-up Attacks . | . . . . . . . . . Damage Inflicted 6682 | 112 278 1393 . 1053 1665 1912 . 269 Guns 4086 | 112 278 1393 . 865 854 456 . 128 Cannons 2385 | . . . . . 788 1456 . 141 Explosions . | . . . . . . . . . Melee 188 | . . . . 188 . . . . Ramming 23 | . . . . . 23 . . . Kinetic 3221 | 42 109 740 . 303 923 1018 . 86 Thermal 3222 | 70 169 653 . 562 719 894 . 155 Explosive . | . . . . . . . . . Electromagnetic 28 | . . . . . . . . 28 Impact . | . . . . . . . . . Slashing 188 | . . . . 188 . . . . Piercing . | . . . . . . . . . Highest Corruption 4 | . . . . . 1 4 4 4 Average Corruption 1 | . . . . . 1 1 4 4 Corruption Purged . | . . . . . . . . . Corruption Blocked . | . . . . . . . . . Effects 27 | . . . . . 7 14 . 6 Message Errors 5 | . . . . . 1 3 . 1 Matter Fused 10 | . . . . . 4 4 . 2 Heat Flow Errors 3 | . . . . . . 2 . 1 Energy Discharges 2 | . . . . . . 2 . . Parts Rejected 1 | . . . . . . 1 . . Data Loss (minor) 5 | . . . . . 2 2 . 1 Data Loss (major) 1 | . . . . . . . . 1 Overload Shots . | . . . . . . . . . Overflow Damage 10 | . . . . . 6 4 . . Projectiles 10 | . . . . . 6 4 . . Explosions . | . . . . . . . . . Melee . | . . . . . . . . . Knockbacks 5 | . . . . . 3 . . 2 Impact . | . . . . . . . . . Kinetic 5 | . . . . . 3 . . 2 Secondary . | . . . . . . . . . Self-Inflicted Damage 11 | . . . . . 11 . . . Shots . | . . . . . . . . . Rammed 1 | . . . . . 1 . . . Targets Rammed 1 | . . . . . 1 . . . Kicked . | . . . . . . . . . Crushed . | . . . . . . . . . Highest Temperature 724 | 20 139 159 . 724 349 473 . 432 Average Temperature 99 | 14 43 50 . 148 92 163 . 122 Received Heat Transfer 2221 | . 126 738 . 333 426 598 . . Effects 15 | . . . . 12 . 3 . . Shutdowns 4 | . . . . 2 . 2 . . Energy Bleed 1 | . . . . 1 . . . . Interference 1 | . . . . 1 . . . . Short Circuit 3 | . . . . 2 . 1 . . Damage (minor) 1 | . . . . 1 . . . . Damage (major) 4 | . . . . 4 . . . . Damage (core) 1 | . . . . 1 . . . . Siege Activations . | . . . . . . . . . Robots Corrupted . | . . . . . . . . . Combat Hostiles . | . . . . . . . . . Parts Fried . | . . . . . . . . . Impact Corruptions . | . . . . . . . . . Robots Melted 3 | . . . . 1 2 . . . Combat Hostiles 3 | . . . . 1 2 . . . Parts Melted 16 | . . 5 . 3 4 4 . . Heat Transferred 7751 | 150 434 1961 . 1813 1369 1725 . 299 Parts Sabotaged 12 | . . . . . . 12 . . Parts Stolen . | . . . . . . . . . Parts Stripped . | . . . . . . . . . Power Chain Reactions . | . . . . . . . . . Missiles Intercepted . | . . . . . . . . . Alert | -11 -10 -9 -9 -8 -7 -7 -7 -7 ------- Run | Jun Mat Mat Min Mat Fac Gar Fac DSF Peak Influence 852 | 20 133 456 123 152 247 852 447 316 Initial 447 | . 13 5 123 47 2 191 447 316 Average 205 | 6 44 184 123 61 88 462 447 309 Maximum Alert Level 3 | . . 2 . . 1 3 2 1 Low Security (%) 61 | 100 100 53 100 100 96 4 . . Level 1 22 | . . 39 . . 3 42 . 100 Level 2 8 | . . 7 . . . 24 100 . Level 3 7 | . . . . . . 27 . . Level 4 . | . . . . . . . . . Level 5 . | . . . . . . . . . High Security . | . . . . . . . . . Max Security . | . . . . . . . . . Squads Dispatched 11 | . 1 2 . 2 5 . . 1 Investigation 3 | . . 1 . . 2 . . . Extermination 1 | . . . . . 1 . . . Reinforcement 5 | . 1 1 . 2 . . . 1 Assault . | . . . . . . . . . Garrison 2 | . . . . . 2 . . . Intercept . | . . . . . . . . . Searches Triggered . | . . . . . . . . . Construction Impeded . | . . . . . . . . . Haulers Reinforced . | . . . . . . . . . Active Scanning Responses . | . . . . . . . . . Cargo Convoy Interrupts . | . . . . . . . . . Stealth | -11 -10 -9 -9 -8 -7 -7 -7 -7 --------- Run | Jun Mat Mat Min Mat Fac Gar Fac DSF Distress Signals 5 | . . 4 1 . . . . . Communications Jammed . | . . . . . . . . . Distress Signals . | . . . . . . . . . Times Spotted 111 | . 11 32 2 14 19 30 . 3 Peak Tracking Total 10 | . 3 10 2 5 4 9 . 2 Tactical Retreats 8 | . . 4 . . 2 1 . 1 Traps | -11 -10 -9 -9 -8 -7 -7 -7 -7 ------- Run | Jun Mat Mat Min Mat Fac Gar Fac DSF Traps Triggered 17 | . . 1 . . 4 10 . 2 Indirectly . | . . . . . . . . . Trap Hack Attempts . | . . . . . . . . . Triggered . | . . . . . . . . . Disarmed 1 | . 1 . . . . . . . Reprogrammed . | . . . . . . . . . Reused . | . . . . . . . . . Traps Extracted . | . . . . . . . . . Installed . | . . . . . . . . . Triggered . | . . . . . . . . . Machines | -11 -10 -9 -9 -8 -7 -7 -7 -7 ---------- Run | Jun Mat Mat Min Mat Fac Gar Fac DSF Machines Disabled 4 | . . . . 1 1 2 . . Max in Single Turn 1 | . . . . 1 1 1 . . Garrison Relay 2 | . . . . . . 2 . . Machines Repaired . | . . . . . . . . . Machines Sabotaged . | . . . . . . . . . Overloaded Fab Kills . | . . . . . . . . . Hacking | -11 -10 -9 -9 -8 -7 -7 -7 -7 --------- Run | Jun Mat Mat Min Mat Fac Gar Fac DSF Machines Accessed 24 | . 6 6 . 3 6 2 1 . Terminals 16 | . 4 4 . 2 3 2 1 . Fabricators . | . . . . . . . . . Repair Stations 3 | . 1 1 . . 1 . . . Recycling Units 3 | . 1 . . 1 1 . . . Scanalyzers 1 | . . 1 . . . . . . Garrison Access 1 | . . . . . 1 . . . Total Hacks 69 | . 20 19 . 10 15 2 3 . Successful 29 | . 6 8 . 4 9 1 1 . Failed 40 | . 14 11 . 6 6 1 2 . Catastrophic 3 | . 1 . . . 1 1 . . Database Lockouts . | . . . . . . . . . Manual 13 | . 3 7 . 3 . . . . Terminals 45 | . 12 14 . 7 7 2 3 . Fabricators . | . . . . . . . . . Repair Stations 7 | . 2 3 . . 2 . . . Recycling Units 11 | . 6 . . 3 2 . . . Scanalyzers 2 | . . 2 . . . . . . Garrison Access 4 | . . . . . 4 . . . Terminal Hacks 17 | . 3 5 . 2 5 1 1 . Record 4 | . . . . . 4 . . . Prototype ID Bank 1 | . . . . 1 . . . . Open DSF 2 | . . . . . 1 . 1 . Branch Access Points 2 | . . 1 . 1 . . . . Emergency Access Points 2 | . . 1 . . . 1 . . Terminal Index 1 | . 1 . . . . . . . Disarm Traps 1 | . 1 . . . . . . . Security Status 1 | . . 1 . . . . . . Transport Status 2 | . 1 1 . . . . . . Zone Layout 1 | . . 1 . . . . . . Fabricator Hacks . | . . . . . . . . . Repair Station Hacks 5 | . 2 2 . . 1 . . . Scan Component 3 | . 1 1 . . 1 . . . Repair 2 | . 1 1 . . . . . . Recycling Unit Hacks 4 | . 1 . . 2 1 . . . Report Inventory 2 | . 1 . . 1 . . . . Retrieve Components 2 | . . . . 1 1 . . . Scanalyzer 1 | . . 1 . . . . . . Insert Component 1 | . . 1 . . . . . . Garrison Access Hacks 2 | . . . . . 2 . . . Unlock Access 1 | . . . . . 1 . . . Coupler Status 1 | . . . . . 1 . . . Unauthorized Hacks . | . . . . . . . . . Terminals . | . . . . . . . . . Fabricators . | . . . . . . . . . Repair Stations . | . . . . . . . . . Recycling Units . | . . . . . . . . . Scanalyzers . | . . . . . . . . . Garrison Access . | . . . . . . . . . Data Cores Recovered 1 | . . . . 1 . . . . Used . | . . . . . . . . . Hacking Detections 19 | . 6 4 . 2 5 1 1 . Full Trace Events 3 | . . 1 . . 2 . . . Feedback Events . | . . . . . . . . . Feedback Blocked 1 | . . . . . 1 . . . Robot Schematics Acquired . | . . . . . . . . . Robots Built . | . . . . . . . . . Authchips . | . . . . . . . . . Time . | . . . . . . . . . Total Robot Build Rating . | . . . . . . . . . Part Schematics Acquired . | . . . . . . . . . Parts Built . | . . . . . . . . . Authchips . | . . . . . . . . . Time . | . . . . . . . . . Total Part Build Rating . | . . . . . . . . . Parts Repaired 2 | . 1 1 . . . . . . Time 45 | . 26 19 . . . . . . Parts Recycled . | . . . . . . . . . Recycled Matter . | . . . . . . . . . Retrieved Matter . | . . . . . . . . . Retrieved Components 11 | . . . . 9 2 . . . Parts Scanalyzed 1 | . . 1 . . . . . . Part Schematics Acquired . | . . . . . . . . . Parts Damaged . | . . . . . . . . . Bothacking | -11 -10 -9 -9 -8 -7 -7 -7 -7 ------------ Run | Jun Mat Mat Min Mat Fac Gar Fac DSF Used RIF Installer . | . . . . . . . . . Robots Hacked 2 | . . . . 2 . . . . Non-combat 2 | . . . . 2 . . . . Combat . | . . . . . . . . . Robot Hacks Applied 3 | . . . . 3 . . . . parse_system 1 | . . . . 1 . . . . no_distress 1 | . . . . 1 . . . . find_recycling 1 | . . . . 1 . . . . Relay Couplers Released 6 | . . . . . . 6 . . Machine Destruction 6 | . . . . . . 6 . . Fabnet Peak Effective % . | . . . . . . . . . Robots Rewired . | . . . . . . . . . Allies Hacked . | . . . . . . . . . Hacks Repelled . | . . . . . . . . . Allies | -11 -10 -9 -9 -8 -7 -7 -7 -7 -------- Run | Jun Mat Mat Min Mat Fac Gar Fac DSF Total Allies 2 | . . . . . . 2 . . Largest Group 2 | . . . . . . 2 . . Highest-Rated Group 175 | . . . . . . 175 . . Highest-Rated Ally 95 | . . . . . . 95 . . Total Orders . | . . . . . . . . . Ally Attacks 23 | . . . . . . 23 . . Total Damage 767 | . . . . . . 767 . . Kills 6 | . . . . . . 6 . . Allies Corrupted . | . . . . . . . . . Allies Melted 1 | . . . . . . 1 . . Intel | -11 -10 -9 -9 -8 -7 -7 -7 -7 ------- Run | Jun Mat Mat Min Mat Fac Gar Fac DSF Robot Analysis Total . | . . . . . . . . . Derelict Logs Recovered 1 | . . . 1 . . . . . Drone Launches . | . . . . . . . . . Drone Recoveries . | . . . . . . . . . Exploration | -11 -10 -9 -9 -8 -7 -7 -7 -7 ------------- Run | Jun Mat Mat Min Mat Fac Gar Fac DSF Turns Passed 6183 | 148 897 850 172 992 1123 1758 6 237 Spaces Moved 2543 | 83 410 342 90 300 673 600 3 42 Core 36 | 8 . . . 25 . 3 . . Treads 375 | . . . . . 13 362 . . Legs 1426 | 75 410 342 90 229 . 235 3 42 Wheels 605 | . . . . . 605 . . . Hover . | . . . . . . . . . Flight 101 | . . . . 46 55 . . . Fastest Speed 50 | 50 120 120 190 190 101 156 265 185 Average Speed 172 | 121 151 146 190 264 112 222 265 225 Slowest Speed 1050 | 200 190 260 190 950 235 1050 265 265 Overloaded Moves . | . . . . . . . . . Propulsion Burnouts . | . . . . . . . . . Robots Hopped . | . . . . . . . . . Cave-ins Triggered . | . . . . . . . . . Exploration Rate (%) 30 | 4 55 36 24 26 14 58 . 25 Regions Visited 8 Branch Regions 1 Pre-discovered Areas 2 | . . . 2 . . . . . Known Exits Taken 3 | . . 1 . . 1 . 1 . Unknown Exits Taken 4 | 1 1 . 1 1 . . . . Scrap Searched 1 | . . . 1 . . . . . Spaces Dug . | . . . . . . . . . Terrain Destroyed 11 | . . . . . 11 . . . Melee . | . . . . . . . . . Projectile 11 | . . . . . 11 . . . AOE . | . . . . . . . . . Terrain Rammed . | . . . . . . . . . Walls Destroyed . | . . . . . . . . . Machines Disabled . | . . . . . . . . . Actions | -11 -10 -9 -9 -8 -7 -7 -7 -7 --------- Run | Jun Mat Mat Min Mat Fac Gar Fac DSF Total 3803 | 110 637 540 91 402 941 906 2 174 Wait 647 | . 166 62 . 13 142 166 . 98 Move 2534 | 82 409 341 89 299 673 597 2 42 Hop . | . . . . . . . . . Pick Up 119 | 9 16 24 2 12 23 27 . 6 Fast Attach 28 | 4 1 2 . 6 10 3 . 2 Attach 81 | 4 1 19 . 6 19 28 . 4 Detach 14 | 1 1 1 . . 7 3 . 1 Swap 18 | . 7 1 . 7 1 1 . 1 Drop 47 | . 8 6 . 10 16 2 . 5 Fire 270 | 10 28 84 . 38 49 56 . 5 Melee 12 | . . . . 11 . 1 . . Ram 1 | . . . . . 1 . . . Kick . | . . . . . . . . . Crush . | . . . . . . . . . Escape Stasis 32 | . . . . . . 22 . 10 Rewire . | . . . . . . . . . Trap . | . . . . . . . . . Miscellaneous . | . . . . . . . . . Route ------- -11/Junkyard -10/Materials -9/Materials (discovered 2 exits: *Min x2) -9/Mines -8/Materials (discovered 2 exits: *Fac / Sto) -7/Factory -7/Garrison (discovered 3 exits: *Fac x3) -7/Factory -7/DSF History --------- Turn | Location | Event 25 | -11/Junkyard | Discovered new exit (range 15) 149 | -11/Junkyard | Entered Materials 318 | -10/Materials | Build established: Mutant 397 | -10/Materials | Discovered new exit (range 10) 612 | -10/Materials | Repaired Aluminum Leg 1046 | -10/Materials | Entered another Materials area 1046 | -9/Materials | Evolved 2 slots: Propulsion x2 1092 | -9/Materials | Identified exit to Mines 1234 | -9/Materials | Repaired Imp. Terrain Scanner 1515 | -9/Materials | Lost 3 parts (2n1w) 1641 | -9/Materials | Core integrity fell below 50% 1662 | -9/Materials | Lost 3 parts (3n) 1666 | -9/Materials | Destroyed 8 combat bots 1774 | -9/Materials | Lost 3 parts (1p1n1u) 1884 | -9/Materials | Build established: Scavenger-Mutant 1896 | -9/Materials | Entered Mines 1897 | -9/Mines | Learned location of Storage (-8) 1922 | -9/Mines | Met a Derelict bent on vengeance 1972 | -9/Mines | Found a damaged Exp. Sensor Array with a note attached 1976 | -9/Mines | Found Prototype Device 1997 | -9/Mines | Assembled infested the area 2002 | -9/Mines | Assisted by a Guerilla fighting off Assembled 2043 | -9/Mines | Discovered new exit (range 14) 2068 | -9/Mines | Entered Materials 2068 | -8/Materials | Evolved 2 slots: Utility x1, Weapon x1 2306 | -8/Materials | Identified exit to Storage 2500 | -8/Materials | Build established: Scavenger-Gunner 2653 | -8/Materials | Lost 5 parts (3n2w) 2749 | -8/Materials | Lost 3 parts (1n2w) 3028 | -8/Materials | Build established: Gunner 3054 | -8/Materials | Discovered new exit (range 4) 3060 | -8/Materials | Entered Factory 3060 | -7/Factory | Evolved 2 slots: Power x1, Utility x1 3764 | -7/Factory | Build established: Scavenger-Tank 4042 | -7/Factory | Garrison activated, responded to threat 4163 | -7/Factory | Lost 4 parts (1p1n2w) 4183 | -7/Factory | Identified exit to Garrison 4183 | -7/Factory | Entered Garrison 4261 | -7/Garrison | Core integrity fell below 50% 4432 | -7/Garrison | Triggered checkpoint 4658 | -7/Garrison | Triggered checkpoint 4694 | -7/Garrison | Triggered checkpoint 4796 | -7/Garrison | Found embedded Infiltrators 4798 | -7/Garrison | Triggered checkpoint 4893 | -7/Garrison | Discovered new exit (range 12) 4919 | -7/Garrison | Attempted to access garrison exit controls, blocked by remote lockdown 5140 | -7/Garrison | Triggered checkpoint 5394 | -7/Garrison | Discovered new exit (range 10) 5412 | -7/Garrison | Attempted to access garrison exit controls, blocked by remote lockdown 5430 | -7/Garrison | Triggered checkpoint 5454 | -7/Garrison | Garrison Relay disabled 5680 | -7/Garrison | Triggered checkpoint 5729 | -7/Garrison | Core integrity fell below 20% 5802 | -7/Garrison | Lost 8 parts (3p3n1u1w) 5846 | -7/Garrison | Garrison Relay disabled 5917 | -7/Garrison | Discovered new exit (range 10) 5941 | -7/Garrison | Entered Factory 5947 | -7/Factory | Identified exit to DSF 5947 | -7/Factory | Entered DSF 6031 | -7/DSF | Additional patrols routed to DSF 6184 | -7/DSF | Destroyed by X-67 Chaingunner with Heavy Machine Gun Last Messages --------------- Field strength at 70. Field strength at 55. Field strength at 40. Field strength at 25. Field strength at 10. Stasis field depleted. System corrupted: Matter fused (-8). Aluminum Leg destroyed. Matter Repository disabled. Shock Rifle destroyed. Imp. Heat Sink destroyed. X-67 Chaingunner knocked back. Imp. Heat Sink destroyed. X-67 Chaingunner destroyed. X-67 Chaingunner knocked back. C-30 ARC bursts open, deploying its payload. H-55 Commando unfolds itself. Slug penetrates Wall. System corrupted: Heat flow error (+280). [Achievement: 5k Club] Map ----- +----------------------------------------------------+ | ?????????????????????????????????????? | | ?????????????????????????????????????? | | ?????????????????????????????????????? | | ?????????????????????????????????????? | | ?????????????????????????????????????? | | ?????????????????????????????????????? | | ?????????????????????????????????????? | | ?????????????????????????????????????? | | ?????????????????????????????????????? | | ?????????????????????????? ????????? | | ?????????????????????????? ????????? | | ?????????????????????????? ????????? | | ????????????H????????????? ????????? | | ?????????????????????????? ????????? | | ??????????? ???????????? !????????? | | ??????????# ???????????# !????????? | | ?????????## ???????????# ##???????? | | ?????????!! ???????????* #???????? | | ??????????! ???????????* ????????? | | ??????????! ???????????* ????????? | | ????????### #?????????## ##???????? | | ????????#[[ !?????????? *#???????? | | ????????#[[ !?????????? !*#???????? | | ?????????[[ !?########?#%x#????????? | | ??????????# #?# **# ###!%###??????? | | ????????### ### # ##@[*""###????? | | ????????# % ** %%""""????? | | ????????# % ! * ""##"????? | | ????????#]][[[! #***# *##"""""#??????? | | ????????#]][[[! #########"""""#??????? | | ????????#########???????##"####??????? | | ?????????????????????????#"#?????????? | | ?????????????????????????#""?????????? | | ??????????????????????????##?????????? | | ?????????????????????????????????????? | | ?????????????????????????????????????? | | ?????????????????????????????????????? | | ?????????????????????????????????????? | | | | | | | | | | | | | | | | | | | | | | | | | +----------------------------------------------------+ Best States ------------- Heat Dissipation 76 Coolant Potential 50 Energy Generation 27 Energy Capacity 480 Matter Stores 300 Matter Capacity 300 Sight Range 16 Terrain Scan Range 16 Terrain Scan Density 85 Additional Mass Support 9 Armor Coverage 300 Resistance: EM 15 Utility Shielding 66 Evasion (%) 55 Recoil Reduction 4 Offensive Hacking 10 Item Schematics ----------------- None Robot Schematics ------------------ None Fabricated ------------ Nothing Alien Tech Used ----------------- None Achievements -------------- 5k Club Challenges ------------ None Game ------ Seed HybridRecyclingPurifier Manual? 0 Play Time 01:41:25 Cumulative 9.8 hours Start 2023.05.06 @ 11:59:34 End 2023.05.06 @ 19:10:52 Sessions 5 Manual Loads 0 Difficulty Rogue Special Mode None Game No. 10 Rogue 10 Adventurer 0 Explorer 0 Win Type - Total 0 Types 0/0/0/0/0/0/0/0/0 Lore% 4 Gallery% 12 Achievement% 10 Wizard Run 0 Options --------- ASCII 0 Keyboard 0 Movement Mouse Keybinds 0 Fullscreen 1 Font 18/SmallcapsGlow Map View 76x50 Tactical HUD 0 Map Filters NONE Filters NONE Steam 1 RUN: 112598b4-0a8f-41e3-95af-2f6ab53a6c83